Cogmind - Beta 9.6 @@@ ROGUE MODE // 2020.08.17 @ 05:32:18 Player: Sudoku Result: Destroyed by S-43 Plague with Heavy Machine Gun Performance ------------- Evolutions (8) 4000 Regions Visited (10) 2000 Robots Destroyed (39) 195 Value Destroyed (811) 811 Prototype IDs (14) 280 Alien Tech Used (0) 0 Bonus (0) 0 TOTAL SCORE: 7286 Bonus ------- None Cogmind --------- Core Integrity 0/1450 Matter 56/300 Energy 99/100 System Corruption 12% Temperature Cool (0) Movement Core (50) Location -2/Research Parts ------- > --- POWER (4) -------- (None) > --- PROPULSION (5) --- (None) > --- UTILITY (10) ----- Spectral Analyzer Experimental Signal Interpreter > --- WEAPON (4) ------- (None) > --- INVENTORY (4) ---- Advanced Weight Redist. System Improved Stasis Canceller Advanced Phase Shifter Stasis Projector Peak State ------------ > --- POWER ------------ Light Ion Engine Improved Quantum Reactor > --- PROPULSION ------- Biometal Heavy Treads Biometal Heavy Treads Field Propulsion Drive > --- UTILITY ---------- Spectral Analyzer Long-range Sensor Array Experimental Signal Interpreter Improved Particle Charger Advanced Transmission Jammer Antimissile System > --- WEAPON ----------- Enhanced Quantum Rifle Enhanced Nova Cannon Hardcell Cannon > --- INVENTORY -------- Advanced Weight Redist. System Improved Stasis Canceller Advanced Phase Shifter Stasis Projector [Rating: 120] Favorites ----------- Power Light Ion Engine Engine Light Ion Engine Power Core Light Fission Core Reactor Improved Quantum Reactor Propulsion Flight Unit Treads Biometal Heavy Treads Leg Aluminum Leg Flight Unit Flight Unit Utility Large Storage Unit Device Long-range Sensor Array Storage Large Storage Unit Processor Advanced Signal Interpreter Hackware Advanced Hacking Suite Protection Propulsion Shielding Weapon Improved Datajack Energy Gun Beam Rifle Energy Cannon Enhanced Nova Cannon Ballistic Gun Light Assault Rifle Ballistic Cannon Hardcell Cannon Launcher Mini Grenade Launcher Piercing Weapon Lance Special Melee Weapon Improved Datajack Build | -11 -10 -9 -8 -7 -6 -5 -4 -3 -3 -2 ------- Run | Scr Mat Mat Mat Fac Fac Fac Fac Res Tes Res Slots Evolved 16 | . . 2 2 2 2 2 2 2 . 2 Power 3 | . . . 1 . . 1 . 1 . . Propulsion 3 | . . 1 1 . . . . 1 . . Utility 8 | . . 1 . 2 2 1 2 . . . Weapon 2 | . . . . . . . . . . 2 Parts Attached 111 | 7 8 24 16 10 4 1 9 6 9 17 Power 21 | 1 1 3 5 3 1 1 3 1 . 2 Engine 16 | 1 1 3 5 2 . 1 1 1 . 1 Core 3 | . . . . 1 1 . 1 . . . Reactor 2 | . . . . . . . 1 . . 1 Propulsion 38 | 2 1 15 6 2 1 . 1 3 2 5 Treads 5 | . . 2 . . . . . . . 3 Leg 15 | 2 1 10 1 . . . . . . 1 Wheel . | . . . . . . . . . . . Hover . | . . . . . . . . . . . Flight 18 | . . 3 5 2 1 . 1 3 2 1 Utility 31 | 2 2 1 3 4 2 . 4 1 6 6 Device 18 | . . . 2 2 2 . 2 1 4 5 Storage 6 | 2 2 1 . . . . . . . 1 Processor 4 | . . . . 2 . . . . 2 . Hackware 1 | . . . . . . . 1 . . . Protection 2 | . . . 1 . . . 1 . . . Artifact . | . . . . . . . . . . . Weapon 21 | 2 4 5 2 1 . . 1 1 1 4 Energy Gun 8 | 2 2 3 . . . . . . . 1 Energy Cannon 2 | . . . . . . . . . . 2 Ballistic Gun 5 | . 2 2 1 . . . . . . . Ballistic Cannon 1 | . . . . . . . . . . 1 Launcher 3 | . . . . 1 . . 1 . 1 . Special Weapon . | . . . . . . . . . . . Impact Weapon . | . . . . . . . . . . . Slashing Weapon . | . . . . . . . . . . . Piercing Weapon 1 | . . . . . . . . 1 . . Special Melee Weapon 1 | . . . 1 . . . . . . . Unidentified Prototypes 9 | . . . 1 1 . . 1 1 4 1 Parts Lost 52 | . 6 4 3 1 . . 1 2 22 13 Power 10 | . 1 . 2 1 . . 1 . 4 1 Propulsion 11 | . 1 1 1 . . . . 1 4 3 Utility 18 | . . . . . . . . 1 11 6 Weapon 13 | . 4 3 . . . . . . 3 3 Highest Loss Streak 14 | . 6 1 2 1 . . 1 1 14 13 Average Slot Usage (%) 85 | . 97 97 96 97 96 94 84 89 72 43 Engine 9 | . 13 10 16 9 . 5 5 13 7 3 Core 2 | . . . . 3 12 11 9 4 2 . Treads 1 | . . 4 . . . . . . . 6 Leg 9 | . 27 28 2 . . . . . . 2 Flight 11 | . . . 32 29 23 23 16 13 11 1 Device 15 | . . . 16 23 33 29 29 33 30 10 Storage 10 | . 28 31 2 . . . . . . . Processor 3 | . . . . 7 6 5 5 4 4 8 Protection 2 | . . . 7 7 6 5 4 4 2 . Energy Gun 3 | . 13 5 5 . . . . . . 2 Ballistic Gun 5 | . 12 16 7 3 . . . . . . Launcher 1 | . . . . 3 6 5 5 4 3 . Special Melee Weapon 2 | . . . 2 7 6 5 5 3 . . Naked Turns . | . . . . . . . . . . . Heaviest Build 60 | 14 40 51 58 19 22 27 35 48 57 60 Greatest Support 105 | 20 20 33 43 21 30 30 45 65 65 105 Greatest Overweight (x) 15 | 2 3 15 1 5 . . . 1 13 3 Average Overweight (x) . | . . 1 . . . . . . . . Largest Inventory Capacity 20 | 8 16 20 20 4 4 4 4 4 4 4 Average Capacity 8 | 6 15 19 5 4 4 4 4 4 4 4 Most Carried 20 | 8 16 20 19 4 4 3 4 4 4 4 Average Carried 7 | 4 15 18 5 3 3 3 3 3 3 2 Final Capacity 20 | 8 16 20 4 4 4 4 4 4 4 4 Final Carried 20 | 8 16 20 4 4 4 3 4 4 2 4 Class Distribution -------------------- 34% | Mutant 16% | Scavenger-Mutant 11% | Infiltrator-Sprinter 10% | Generator-Mutant 9% | Scavenger-Sprinter 6% | Skirmisher 5% | Infiltrator-Mutant 3% | Hauler-Mutant Dominant Class ---------------- Mutant | -10/Materials Scavenger-Mutant | -9/Materials Scavenger-Sprinter | -8/Materials Mutant | -7/Factory Infiltrator-Mutant | -6/Factory Infiltrator-Sprinter | -5/Factory Infiltrator-Sprinter | -4/Factory Generator-Mutant | -3/Research Generator-Mutant | -3/Testing Skirmisher | -2/Research Resources | -11 -10 -9 -8 -7 -6 -5 -4 -3 -3 -2 ----------- Run | Scr Mat Mat Mat Fac Fac Fac Fac Res Tes Res Matter Collected 1544 | 264 279 671 122 52 . . . 13 143 . Remotely . | . . . . . . . . . . . Salvage Created 1289 | 92 285 721 . . . . . . 121 70 Parts 95 | 6 16 57 . . . . . . 8 8 Haulers Intercepted 1 | . 1 . . . . . . . . . Recyclers Shooed 7 | . 3 3 . . . . . . 1 . Parts Field Recycled . | . . . . . . . . . . . Retrieved Matter . | . . . . . . . . . . . Parts Self-Destructed . | . . . . . . . . . . . Prevented . | . . . . . . . . . . . Kills | -11 -10 -9 -8 -7 -6 -5 -4 -3 -3 -2 ------- Run | Scr Mat Mat Mat Fac Fac Fac Fac Res Tes Res Combat Hostiles Destroyed 25 | . 6 18 . . . . . . . 1 Guns 24 | . 6 18 . . . . . . . . Cannons 1 | . . . . . . . . . . 1 Classes Destroyed 10 | 2 4 2 . . . . . . 1 1 Worker 5 | 2 . 1 . . . . . . 2 . Builder 1 | . . . . . . . . . 1 . Hauler 1 | . 1 . . . . . . . . . Recycler 3 | 1 . 2 . . . . . . . . Watcher 4 | . 1 2 . . . . . . 1 . Swarmer 12 | . 2 10 . . . . . . . . Grunt 9 | . 4 5 . . . . . . . . Duelist 1 | . . 1 . . . . . . . . Sentry 2 | . . 2 . . . . . . . . Programmer 1 | . . . . . . . . . . 1 Best Kill Streak 5 | 2 2 5 . . . . . . 1 1 Combat Bots Only 4 | . 2 4 . . . . . . . 1 Max Kills in Single Turn 1 | 1 1 1 . . . . . . 1 1 Gunslinging . | . . . . . . . . . . . Exploded . | . . . . . . . . . . . Melee . | . . . . . . . . . . . Uniques/NPCs Destroyed . | . . . . . . . . . . . Combat | -11 -10 -9 -8 -7 -6 -5 -4 -3 -3 -2 -------- Run | Scr Mat Mat Mat Fac Fac Fac Fac Res Tes Res Damage Taken 8372 | . 517 901 282 28 . . 199 516 2119 3810 Core 3144 | . 62 187 78 7 . . 98 179 1071 1462 Absorbed by Shields . | . . . . . . . . . . . Core Remaining (%) 78 | 100 75 53 85 99 100 100 91 . 3 . Volleys Fired 132 | 4 38 76 4 5 . . . . 1 4 Largest 3 | 2 2 2 2 1 . . . . 1 3 Hottest 279 | 90 90 79 76 20 . . . . 30 279 Shots Fired 236 | 8 59 147 6 5 . . . . 1 10 Gun 229 | 8 59 147 6 5 . . . . . 4 Cannon 6 | . . . . . . . . . . 6 Launcher 1 | . . . . . . . . . 1 . Special . | . . . . . . . . . . . Kinetic 153 | . 13 128 4 5 . . . . . 3 Thermal 82 | 8 46 19 2 . . . . . . 7 Explosive 1 | . . . . . . . . . 1 . Electromagnetic . | . . . . . . . . . . . Robot Hit Streak 10 | 2 7 10 6 2 . . . . . 4 Robot Miss Streak 5 | 1 4 5 3 3 . . . . . 2 Penetration Max . | . . . . . . . . . . . Secondary Targets 3 | . . 3 . . . . . . . . Max Gunslinging Chain 1 | . . 1 . . . . . . . . Shots Hit Robots 141 | 3 31 89 2 3 . . 2 . 5 6 Core Hits 67 | 4 17 36 1 1 . . . . 4 4 Critical Hits 1 | . . . . . . . . . 1 . Critical Kills 1 | . . . . . . . . . 1 . Critical Parts Destroyed . | . . . . . . . . . . . Melee Attacks 10 | . . . . 1 . . 2 . 7 . Impact . | . . . . . . . . . . . Slashing . | . . . . . . . . . . . Piercing 7 | . . . . . . . . . 7 . Sneak Attacks 4 | . . . . . . . . . 4 . Combat Hostiles . | . . . . . . . . . . . Follow-up Attacks . | . . . . . . . . . . . Damage Inflicted 2552 | 61 405 1147 25 18 . . . . 550 346 Guns 1697 | 61 405 1067 25 18 . . . . . 121 Cannons 203 | . . . . . . . . . . 203 Explosions 80 | . . 80 . . . . . . . . Melee 534 | . . . . . . . . . 534 . Ramming 38 | . . . . . . . . . 16 22 Kinetic 1070 | . 59 910 10 18 . . . . . 73 Thermal 830 | 61 346 157 15 . . . . . . 251 Explosive 80 | . . 80 . . . . . . . . Electromagnetic . | . . . . . . . . . . . Impact . | . . . . . . . . . . . Slashing . | . . . . . . . . . . . Piercing 534 | . . . . . . . . . 534 . Highest Corruption 12 | . . . . . . . 1 . 4 12 Average Corruption 4 | . . . . . . . 1 . 3 9 Corruption Purged . | . . . . . . . . . . . Effects 4 | . . . . . . . 1 . 1 2 Message Errors 1 | . . . . . . . 1 . . . Matter Fused 2 | . . . . . . . . . 1 1 Alerts 1 | . . . . . . . . . . 1 Overload Shots . | . . . . . . . . . . . Overflow Damage 158 | . . . . . . . . . 145 13 Projectiles 13 | . . . . . . . . . . 13 Explosions . | . . . . . . . . . . . Melee 145 | . . . . . . . . . 145 . Knockbacks . | . . . . . . . . . . . Impact . | . . . . . . . . . . . Kinetic . | . . . . . . . . . . . Secondary . | . . . . . . . . . . . Self-Inflicted Damage 17 | . . . . . . . . . 8 9 Shots . | . . . . . . . . . . . Rammed 7 | . . . . . . . . 1 1 5 Targets Rammed 7 | . . . . . . . . 1 1 5 Kicked . | . . . . . . . . . . . Crushed . | . . . . . . . . . . . Highest Temperature 457 | 60 347 85 84 9 . 4 6 13 3 457 Average Temperature 71 | 25 133 19 30 4 . 2 3 9 3 221 Received Heat Transfer 720 | . 165 168 90 12 . . 27 24 . 234 Effects 3 | . . . . . . . . . . 3 Shutdowns 1 | . . . . . . . . . . 1 Interference 1 | . . . . . . . . . . 1 Matter Decay 1 | . . . . . . . . . . 1 Siege Activations . | . . . . . . . . . . . Robots Corrupted . | . . . . . . . . . . . Combat Hostiles . | . . . . . . . . . . . Parts Fried . | . . . . . . . . . . . Impact Corruptions . | . . . . . . . . . . . Robots Melted . | . . . . . . . . . . . Combat Hostiles . | . . . . . . . . . . . Parts Melted 1 | 1 . . . . . . . . . . Heat Transferred 1743 | 173 941 407 37 . . . . . . 185 Parts Sabotaged . | . . . . . . . . . . . Parts Stolen . | . . . . . . . . . . . Parts Stripped . | . . . . . . . . . . . Power Chain Reactions . | . . . . . . . . . . . Missiles Intercepted . | . . . . . . . . . . . Alert | -11 -10 -9 -8 -7 -6 -5 -4 -3 -3 -2 ------- Run | Scr Mat Mat Mat Fac Fac Fac Fac Res Tes Res Peak Influence 457 | 15 138 360 239 457 257 149 269 226 149 65 Average Influence 116 | 2 51 211 177 140 236 141 165 169 47 13 Maximum Alert Level 2 | . . 1 1 2 1 . 1 1 . . Low Security (%) 78 | 100 100 39 77 78 . 100 69 95 100 100 Level 1 17 | . . 60 22 . 100 . 30 4 . . Level 2 3 | . . . . 21 . . . . . . Level 3 . | . . . . . . . . . . . Level 4 . | . . . . . . . . . . . Level 5 . | . . . . . . . . . . . High Security . | . . . . . . . . . . . Max Security . | . . . . . . . . . . . Squads Dispatched 12 | . . 2 1 1 . . 3 1 2 2 Investigation 1 | . . . . . . . 1 . . . Extermination 2 | . . . . . . . . . 1 1 Reinforcement 9 | . . 2 1 1 . . 2 1 1 1 Assault . | . . . . . . . . . . . Garrison . | . . . . . . . . . . . Intercept . | . . . . . . . . . . . Construction Impeded . | . . . . . . . . . . . Haulers Reinforced 1 | . . . . . . . . . . 1 Stealth | -11 -10 -9 -8 -7 -6 -5 -4 -3 -3 -2 --------- Run | Scr Mat Mat Mat Fac Fac Fac Fac Res Tes Res Distress Signals 9 | . . 2 2 . . . . 3 1 1 Communications Jammed 76 | . . . . . . . . . 10 66 Distress Signals 72 | . . . . . . . . . 6 66 Times Spotted 182 | . 10 28 21 7 . . 16 29 46 25 Peak Tracking Total 21 | . 3 5 10 4 . . 9 9 17 21 Tactical Retreats 23 | . . . 4 2 . . 5 4 6 2 Traps | -11 -10 -9 -8 -7 -6 -5 -4 -3 -3 -2 ------- Run | Scr Mat Mat Mat Fac Fac Fac Fac Res Tes Res Traps Triggered 4 | . . . . 1 . . 1 . 1 1 Indirectly . | . . . . . . . . . . . Trap Hack Attempts . | . . . . . . . . . . . Triggered . | . . . . . . . . . . . Disarmed . | . . . . . . . . . . . Reprogrammed . | . . . . . . . . . . . Reused . | . . . . . . . . . . . Traps Extracted . | . . . . . . . . . . . Installed . | . . . . . . . . . . . Triggered . | . . . . . . . . . . . Machines | -11 -10 -9 -8 -7 -6 -5 -4 -3 -3 -2 ---------- Run | Scr Mat Mat Mat Fac Fac Fac Fac Res Tes Res Machines Disabled 2 | . . 2 . . . . . . . . Max in Single Turn 2 | . . 2 . . . . . . . . Garrison Access 2 | . . . . . . . 1 . 1 . Machines Sabotaged . | . . . . . . . . . . . Garrisons Compromised . | . . . . . . . . . . . Overloaded Fab Kills . | . . . . . . . . . . . Fab Network Shutdowns 1 | . . . . 1 . . . . . . Hacking | -11 -10 -9 -8 -7 -6 -5 -4 -3 -3 -2 --------- Run | Scr Mat Mat Mat Fac Fac Fac Fac Res Tes Res Machines Accessed 53 | . 3 5 5 12 1 4 9 1 10 3 Terminals 32 | . 3 4 2 6 . 4 5 1 6 1 Fabricators 6 | . . . . 2 . . 2 . 1 1 Repair Stations 5 | . . . 1 2 1 . 1 . . . Recycling Units 3 | . . . 2 . . . . . . 1 Scanalyzers 5 | . . 1 . 2 . . . . 2 . Garrison Access 2 | . . . . . . . 1 . 1 . Total Hacks 132 | . 11 14 13 25 2 11 18 2 30 6 Successful 80 | . 7 12 5 15 2 5 10 . 21 3 Failed 52 | . 4 2 8 10 . 6 8 2 9 3 Catastrophic 9 | . 1 . 1 1 . . 3 . 2 1 Database Lockouts . | . . . . . . . . . . . Manual 31 | . 5 2 4 9 . 5 3 . 2 1 Terminals 73 | . 11 7 6 11 . 11 10 2 14 1 Fabricators 12 | . . . . 5 . . 3 . 1 3 Repair Stations 12 | . . . 1 5 2 . 4 . . . Recycling Units 8 | . . . 6 . . . . . . 2 Scanalyzers 24 | . . 7 . 4 . . . . 13 . Garrison Access 3 | . . . . . . . 1 . 2 . Terminal Hacks 24 | . 5 3 . 4 . 3 3 . 6 . Prototype ID Bank 2 | . 1 . . . . . . . 1 . Level Access Points 2 | . . . . . . 1 . . 1 . Emergency Access Points 3 | . . . . 1 . . 1 . 1 . Terminal Index 3 | . 1 . . 1 . 1 . . . . Unreport Threat 3 | . . 1 . 1 . . . . 1 . Locate Traps 4 | . 1 1 . . . 1 1 . . . Hauler Manifests 1 | . . 1 . . . . . . . . Zone Layout 6 | . 2 . . 1 . . 1 . 2 . Fabricator Hacks 4 | . . . . 2 . . 1 . . 1 Load Schematic 3 | . . . . 1 . . 1 . . 1 Build 1 | . . . . 1 . . . . . . Repair Station Hacks 6 | . . . . 2 2 . 2 . . . Scan Component 3 | . . . . 1 1 . 1 . . . Repair 3 | . . . . 1 1 . 1 . . . Recycling Unit Hacks 2 | . . . 1 . . . . . . 1 Retrieve Matter 2 | . . . 1 . . . . . . 1 Scanalyzer 22 | . . 7 . 3 . . . . 12 . Insert Component 10 | . . 3 . 2 . . . . 5 . Analyze 12 | . . 4 . 1 . . . . 7 . Garrison Access Hacks 2 | . . . . . . . 1 . 1 . Seal Access 2 | . . . . . . . 1 . 1 . Unauthorized Hacks 20 | . 2 2 4 4 . 2 3 . 2 1 Terminals 8 | . 2 2 1 . . 2 1 . . . Track 8 | . 2 2 1 . . 2 1 . . . Fabricators 4 | . . . . 2 . . 1 . 1 . Prioritize 1 | . . . . 1 . . . . . . Haulers 3 | . . . . 1 . . 1 . 1 . Repair Stations 4 | . . . 1 2 . . 1 . . . Mechanics 4 | . . . 1 2 . . 1 . . . Recycling Units 3 | . . . 2 . . . . . . 1 Recyclers 2 | . . . 1 . . . . . . 1 Mask 1 | . . . 1 . . . . . . . Scanalyzers 1 | . . . . . . . . . 1 . Researchers 1 | . . . . . . . . . 1 . Garrison Access . | . . . . . . . . . . . Data Cores Recovered . | . . . . . . . . . . . Used . | . . . . . . . . . . . Hacking Detections 45 | . 3 5 3 11 1 4 7 1 7 3 Full Trace Events 1 | . . . . . . . 1 . . . Feedback Events 1 | . . . . . . . 1 . . . Corruption 1 | . . . . . . . 1 . . . Feedback Blocked . | . . . . . . . . . . . Robot Schematics Acquired . | . . . . . . . . . . . Robots Built . | . . . . . . . . . . . Matter . | . . . . . . . . . . . Time . | . . . . . . . . . . . Total Robot Build Rating . | . . . . . . . . . . . Part Schematics Acquired 9 | . . 3 . 1 . . . . 5 . Parts Built 2 | . . . . 2 . . . . . . Matter 102 | . . . . 102 . . . . . . Time 51 | . . . . 51 . . . . . . Total Part Build Rating 2 | . . . . 2 . . . . . . Parts Repaired 3 | . . . . 1 1 . 1 . . . Time 96 | . . . . 26 44 . 26 . . . Parts Recycled . | . . . . . . . . . . . Recycled Matter . | . . . . . . . . . . . Retrieved Matter . | . . . . . . . . . . . Retrieved Components . | . . . . . . . . . . . Parts Scanalyzed 10 | . . 3 . 2 . . . . 5 . Part Schematics Acquired 9 | . . 3 . 1 . . . . 5 . Parts Damaged . | . . . . . . . . . . . Bothacking | -11 -10 -9 -8 -7 -6 -5 -4 -3 -3 -2 ------------ Run | Scr Mat Mat Mat Fac Fac Fac Fac Res Tes Res Used RIF Installer . | . . . . . . . . . . . Robots Hacked 3 | . . . . 1 . . 2 . . . Non-combat 3 | . . . . 1 . . 2 . . . Combat . | . . . . . . . . . . . Robot Hacks Applied 3 | . . . . 1 . . 2 . . . parse_system 3 | . . . . 1 . . 2 . . . Relay Couplers Released . | . . . . . . . . . . . Robots Rewired . | . . . . . . . . . . . Allies Hacked . | . . . . . . . . . . . Hacks Repelled . | . . . . . . . . . . . Allies | -11 -10 -9 -8 -7 -6 -5 -4 -3 -3 -2 -------- Run | Scr Mat Mat Mat Fac Fac Fac Fac Res Tes Res Total Allies . | . . . . . . . . . . . Largest Group . | . . . . . . . . . . . Highest-Rated Group . | . . . . . . . . . . . Highest-Rated Ally . | . . . . . . . . . . . Total Orders . | . . . . . . . . . . . Ally Attacks . | . . . . . . . . . . . Total Damage . | . . . . . . . . . . . Kills . | . . . . . . . . . . . Allies Corrupted . | . . . . . . . . . . . Allies Melted . | . . . . . . . . . . . Intel | -11 -10 -9 -8 -7 -6 -5 -4 -3 -3 -2 ------- Run | Scr Mat Mat Mat Fac Fac Fac Fac Res Tes Res Robot Analysis Total . | . . . . . . . . . . . Derelict Logs Recovered . | . . . . . . . . . . . Drone Launches . | . . . . . . . . . . . Drone Recoveries . | . . . . . . . . . . . Exploration | -11 -10 -9 -8 -7 -6 -5 -4 -3 -3 -2 ------------- Run | Scr Mat Mat Mat Fac Fac Fac Fac Res Tes Res Turns Passed 3906 | 131 590 682 249 630 112 87 336 145 425 519 Spaces Moved 4885 | 78 296 257 397 854 181 296 903 368 869 386 Core 275 | 9 . 1 . 11 . . . . 91 163 Treads 242 | . . 29 . . . . . . . 213 Legs 610 | 69 296 227 8 . . . . . . 10 Wheels . | . . . . . . . . . . . Hover . | . . . . . . . . . . . Flight 3758 | . . . 389 843 181 296 903 368 778 . Fastest Speed 29 | 50 120 150 29 29 29 29 29 32 34 50 Average Speed 58 | 118 149 157 34 53 31 29 30 34 40 114 Slowest Speed 800 | 150 210 800 150 300 32 29 40 117 700 200 Overloaded Moves . | . . . . . . . . . . . Propulsion Burnouts . | . . . . . . . . . . . Robots Hopped 44 | . . . 12 6 . 2 12 4 8 . Cave-ins Triggered . | . . . . . . . . . . . Exploration Rate (%) 27 | 4 34 30 47 32 8 9 29 20 78 15 Regions Visited 10 Branch Regions 1 Pre-discovered Areas . | . . . . . . . . . . . Known Exits Taken 6 | . . . . 1 1 1 1 1 1 . Unknown Exits Taken 4 | 1 1 1 1 . . . . . . . Scrap Searched . | . . . . . . . . . . . Spaces Dug 9 | . . . . . . . . . 9 . Terrain Destroyed 19 | . . 8 . . . . . . 9 2 Melee . | . . . . . . . . . . . Projectile 2 | . . . . . . . . . . 2 AOE 17 | . . 8 . . . . . . 9 . Actions | -11 -10 -9 -8 -7 -6 -5 -4 -3 -3 -2 --------- Run | Scr Mat Mat Mat Fac Fac Fac Fac Res Tes Res Total 5648 | 109 388 401 500 1020 234 294 944 380 924 454 Wait 355 | 2 20 6 62 124 47 . 33 1 32 28 Move 4788 | 77 295 256 372 841 180 291 878 360 852 386 Hop 44 | . . . 12 6 . 2 12 4 8 . Pick Up 105 | 17 20 21 10 5 3 . 5 3 9 12 Fast Attach 30 | . . 2 2 9 . . 6 4 . 7 Attach 58 | 7 6 6 8 2 3 1 3 3 9 10 Detach 1 | . . . . . . . . 1 . . Swap 25 | . 2 16 6 . 1 . . . . . Drop 76 | 2 7 18 24 9 . . 5 4 5 2 Fire 132 | 4 38 76 4 5 . . . . 1 4 Melee 10 | . . . . 1 . . 2 . 7 . Ram 6 | . . . . . . . . . 1 5 Kick . | . . . . . . . . . . . Crush . | . . . . . . . . . . . Escape Stasis 18 | . . . . 18 . . . . . . Rewire . | . . . . . . . . . . . Trap . | . . . . . . . . . . . Miscellaneous . | . . . . . . . . . . . Route ------- -11/Scrapyard -10/Materials (discovered 2 exits: *Mat / [Min]) -9/Materials -8/Materials -7/Factory -6/Factory -5/Factory (discovered 4 exits: *Fac x4) -4/Factory -3/Research -3/Testing -2/Research History --------- Turn | Location | Event 12 | -11/Scrapyard | Discovered new exit (range 15) 132 | -11/Scrapyard | Entered Materials 287 | -10/Materials | Discovered new exit (range 18) 331 | -10/Materials | Build established: Mutant 476 | -10/Materials | Lost 6 parts (1p1n4w) 714 | -10/Materials | Discovered new exit (range 6) 722 | -10/Materials | Entered another Materials area 722 | -9/Materials | Evolved 2 slots: Propulsion x1, Utility x1 1377 | -9/Materials | Discovered new exit (range 13) 1404 | -9/Materials | Entered another Materials area 1404 | -8/Materials | Evolved 2 slots: Power x1, Propulsion x1 1646 | -8/Materials | Discovered new exit (range 16) 1653 | -8/Materials | Entered Factory 1653 | -7/Factory | Evolved 2 slots: Utility x2 1778 | -7/Factory | Fabricated Lgt. Ion Engine (x2) 1985 | -7/Factory | Repaired Flight Unit 2148 | -7/Factory | Local fabrication network quarantined 2279 | -7/Factory | Discovered new exit (range 15) 2283 | -7/Factory | Identified exit to Factory 2283 | -7/Factory | Entered another Factory area 2283 | -6/Factory | Evolved 2 slots: Utility x2 2343 | -6/Factory | Repaired Xenon Bombardment Thruster 2391 | -6/Factory | Discovered new exit (range 6) 2393 | -6/Factory | Identified exit to Factory 2395 | -6/Factory | Entered another Factory area 2395 | -5/Factory | Evolved 2 slots: Power x1, Utility x1 2441 | -5/Factory | Identified exit to Factory 2482 | -5/Factory | Entered another Factory area 2482 | -4/Factory | Evolved 2 slots: Utility x2 2613 | -4/Factory | Repaired Propulsion Shielding 2653 | -4/Factory | Build established: Infiltrator-Sprinter 2751 | -4/Factory | Spotted B-86 Titan 2813 | -4/Factory | Discovered new exit (range 13) 2817 | -4/Factory | Identified exit to Research 2818 | -4/Factory | Entered Research 2818 | -3/Research | Evolved 2 slots: Power x1, Propulsion x1 2960 | -3/Research | Discovered new exit (range 8) 2962 | -3/Research | Identified exit to Testing 2963 | -3/Research | Entered Testing 2966 | -3/Testing | Found Prototype Processor 3039 | -3/Testing | Identified Exp. Signal Interpreter 3083 | -3/Testing | Build established: Generator-Mutant 3154 | -3/Testing | Spotted Striker 3222 | -3/Testing | Lost 6 parts (2p1n2u1w) 3303 | -3/Testing | Identified exit to Research 3325 | -3/Testing | Found Prototype Processor 3331 | -3/Testing | Identified Spectral Analyzer 3344 | -3/Testing | Core integrity fell below 50% 3372 | -3/Testing | Core integrity fell below 20% 3378 | -3/Testing | Lost 14 parts (1p3n8u2w) 3388 | -3/Testing | Entered Research 3388 | -2/Research | Evolved 2 slots: Weapon x2 3717 | -2/Research | Found Antimissile System 3820 | -2/Research | System corruption reached 10% 3865 | -2/Research | Core integrity fell below 50% 3889 | -2/Research | Core integrity fell below 20% 3906 | -2/Research | Lost 13 parts (1p3n6u3w) 3907 | -2/Research | Destroyed by S-43 Plague with Heavy Machine Gun Last Messages --------------- 03879_ S-43 Plague destroyed. 03880_ P-80 Master resets S-43 Plague, system corruption cleaned. 03888_ ALERT: Rogue bot located, Programmers report to Research Zone 3F. 03893_ Slammed into A-15 Conveyor. 03893_ K-01 Serf cleans the Quantum Generator. 03893_ K-01 Serf destroyed. 03894_ K-01 Serf cleans the Quantum Generator. 03894_ Slammed into A-15 Conveyor. 03894_ Destabilizing: Core damaged (-72). 03894_ A-15 Conveyor calls for reinforcements. 03894_ ALERT: Hostile activity reported, dispatching reinforcements to area. 03897_ K-01 Serf cleans the Quantum Generator. 03903_ Slammed into K-01 Serf. 03903_ K-01 Serf cleans the Quantum Generator. 03904_ Slammed into K-01 Serf. 03904_ Destabilizing: System interference. 03904_ Spectral Analyzer temporarily disabled. 03906_ Slammed into K-01 Serf. 03907_ W-44 Eye sends out distress signal. Map ----- +----------------------------------------------------+ | ?????????????????????????????????????????????????? | | ?????????????????????????????????????????????????? | | ?????????????????????????????????????????????????? | | ?????????????????????????????????????????????????? | | ?????????????????????????????????????????????????? | | ?????????????????????????????????????????????????? | | ?????????????????????????????????????????????????? | | ?????????????????????????????????????????????????? | | ?????????????????????????????????????????????????? | | ?????????????????????????????????????????????????? | | ?????????????????????????????????????????????????? | | ?????????????????????????????????????????????????? | | ?????????????????????????????????????????????????? | | ?????????????????????????????????????????????????? | | ?????????????????????????????????????????????????? | | ?????????????????????????????????????????????????? | | ?????????????????????????????????????????????????? | | ?????????????????????????????????????????????????? | | ##########???????????????????????????????????????? | | #???????????????????????????????????????? | | #???????????????????????????????????????? | | #??????????????###########+####?????????? | | """ #??????????????# ?????????? | | """ #??????????????+ ????????? | | """ #??????????????# k ????????? | | #??????????????#@u k Akk w ????????? | | #??????????????# ########???????????????? | | ############????????????# #??????????????????????? | | #????????????#s#??????????????????????? | | #????????????#k#??????????????????????? | | """ #??????#######/######?????????????????? | | """ #??????# s #?????????????????? | | """ #??????# #?????????????????? | | #??????# """"""" #?????????????????? | | #??????# """"""" #?????????????????? | | ############??????# """"""" #?????????????????? | | ??????????????????# #?????????????????? | | ??????????????????# #?????????????????? | | ????????????????#!! #?????????????????? | | ???????????????#!! #?????????????????? | | ??????????????# [ #?????????????????? | | ## ?????????????# #?????????????????? | | ?# ????????????# #?????????????????? | | ?# ###??????##########/######?????????????????? | | ?? ??????# #?????????????????????? | | ???? ?????# = #?????????????????????? | | ????? ????# *%! #?????????????????????? | | ????? ????# = #?????????????????????? | | ??????### ???# ########?????????????????????? | | ????????# ??# #????????????????????????????? | +----------------------------------------------------+ Best States ------------- Heat Dissipation 68 Energy Generation 53 Energy Capacity 475 Matter Stores 300 Matter Capacity 300 Sight Range 24 Robot Scan Range 20 Terrain Scan Density 10 ECM Strength 2 Jamming Range 16 Additional Mass Support 20 Propulsion Shielding 33 Point Defense Rating 240 Evasion (%) 75 Recoil Reduction 3 Particle Charging 20 Offensive Hacking 14 Item Schematics ----------------- Flight Unit | -9/Materials | Scanalyzed Lgt. Ion Engine | -9/Materials | Scanalyzed Propulsion Shielding | -9/Materials | Scanalyzed Adv. Weight Redist. System | -7/Factory | Scanalyzed Exp. Signal Interpreter | -3/Testing | Scanalyzed Xenon Bombardment Thruster | -3/Testing | Scanalyzed Lrn. Sensor Array | -3/Testing | Scanalyzed Mni. Grenade Launcher | -3/Testing | Scanalyzed Sml. Matter Pod | -3/Testing | Scanalyzed Robot Schematics ------------------ None Fabricated ------------ Lgt. Ion Engine | x2 | -7/Factory Alien Tech Used ----------------- None Achievements -------------- Deadly Force Dodgeball, But With Guns Prolific Hacker Safety First Slippery One Total Silence Challenges ------------ None Game ------ Seed AdvancedRiotKatana Manual? 0 Play Time 03:11:27 Cumulative 59.3 hours Start 2020.08.16 @ 20:22:50 End 2020.08.17 @ 05:32:18 Sessions 3 Manual Loads 0 Difficulty Rogue Special Mode None Game No. 40 Rogue 40 Adventurer 0 Explorer 0 Win Type - Total 0 Types 0/0/0/0/0/0/0 Lore% 17 Gallery% 32 Achievement% 23 Wizard Run 0 Options --------- ASCII 0 Keyboard 0 Movement Mouse Keybinds 0 Fullscreen 0 Font 16/SmallcapsGlow Map View 76x50 Tactical HUD 1 Map Filters NONE Filters NONE Steam 1 RUN: f9357895-11ba-411b-852e-ea67ca8d0853